Cogmind - Beta 10.2 @@@ ROGUE MODE // 2022.01.22 @ 21:36:28 Player: Jezoensis Result: Self-destructed Performance ------------- Evolutions (5) 2500 Regions Visited (11) 2200 Robots Destroyed (45) 225 Value Destroyed (1197) 1197 Prototype IDs (23) 460 Alien Tech Used (0) 0 Bonus (1035) 1035 TOTAL SCORE: 7617 Bonus ------- Follower Combat Kills 35 Entered Garrisons 200 Used RIF Installer 500 Aligned with FarCom 300 Cogmind --------- Core Integrity 1000/1000 Matter 168/300 Energy 290/290 System Corruption 0% Temperature Cool (0) Movement Hovering (52) Location -5/Factory Parts ------- > --- POWER (2) -------- Improved Deuterium Engine > --- PROPULSION (4) --- Gravmag System Gravmag System Gravmag Array > --- UTILITY (9) ------ Large Storage Unit Large Storage Unit Enhanced Optical Array Advanced Terrain Scanner Terrain Scan Processor Improved ECM Suite Hacking Suite > --- WEAPON (2) ------- Great Maul > --- INVENTORY (16) --- Improved Ion Engine Medium Treads Improved Hover Unit Gravmag System Improved Heat Sink Medium Storage Unit Large Storage Unit Advanced Sensor Array Advanced Terrain Scanner Makeshift Salvage Targeting Computer Transmission Jammer Transmission Jammer Cloaking Device Cloak of Protection Layered Light Armor Plating Heavy Rocket Launcher Peak State ------------ > --- POWER ------------ Improved Ion Engine Improved Deuterium Engine > --- PROPULSION ------- Gravmag System Gravmag System Gravmag Array > --- UTILITY ---------- Medium Storage Unit Large Storage Unit Enhanced Optical Array Advanced Terrain Scanner Terrain Scan Processor Improved ECM Suite Hacking Suite > --- WEAPON ----------- Great Maul > --- INVENTORY -------- Medium Treads Improved Heat Sink Large Storage Unit Large Storage Unit Advanced Sensor Array Advanced Terrain Scanner Makeshift Salvage Targeting Computer Transmission Jammer Transmission Jammer Cloak of Protection Layered Light Armor Plating Minigun Flak Gun [Rating: 48] Favorites ----------- Power Improved Ion Engine Engine Improved Ion Engine Propulsion Light Treads Treads Light Treads Leg Carbon-fiber Leg Wheel Armored Wheel Hover Unit Gravmag System Flight Unit Flight Unit Utility Large Storage Unit Device Improved Terrain Scanner Storage Large Storage Unit Processor Terrain Scan Processor Hackware Hacking Suite Protection Weapon Shielding Weapon Light Assault Rifle Energy Gun Small Laser Energy Cannon Heavy Ion Cannon Ballistic Gun Light Assault Rifle Ballistic Cannon Improved Light Cannon Launcher Rocket Launcher Special Weapon Mining Laser Impact Weapon Great Maul Build | -11 -10 -10 -10 -9 -8 -8 -7 -7 -7 -6 -5 ------- Run | Scr Mat Min Exi Min Mat Gar Fac Low Low Fac Fac Slots Evolved 10 | . . . . . 4 . 2 . . 2 2 Power 1 | . . . . . . . . . . 1 . Propulsion 2 | . . . . . 1 . 1 . . . . Utility 7 | . . . . . 3 . 1 . . 1 2 Weapon . | . . . . . . . . . . . . Parts Attached 111 | 7 9 16 3 2 5 17 45 2 . 5 . Power 10 | 1 1 1 1 2 . 2 1 . . 1 . Engine 10 | 1 1 1 1 2 . 2 1 . . 1 . Core . | . . . . . . . . . . . . Reactor . | . . . . . . . . . . . . Propulsion 23 | 2 . 4 . . 2 3 10 . . 2 . Treads 11 | 2 . . . . 1 3 5 . . . . Leg 3 | . . 2 . . 1 . . . . . . Wheel 1 | . . . . . . . 1 . . . . Hover 6 | . . . . . . . 4 . . 2 . Flight 2 | . . 2 . . . . . . . . . Utility 51 | 2 6 8 2 . 2 7 22 . . 2 . Device 32 | 1 2 3 . . . 6 19 . . 1 . Storage 9 | 1 2 1 2 . . 1 1 . . 1 . Processor 3 | . . . . . 2 . 1 . . . . Hackware 1 | . . . . . . . 1 . . . . Protection 6 | . 2 4 . . . . . . . . . Artifact . | . . . . . . . . . . . . Weapon 27 | 2 2 3 . . 1 5 12 2 . . . Energy Gun 7 | 1 . 1 . . . 3 2 . . . . Energy Cannon 1 | . . . . . . . 1 . . . . Ballistic Gun 9 | 1 1 2 . . . 1 4 . . . . Ballistic Cannon 2 | . . . . . . . 2 . . . . Launcher 4 | . . . . . . 1 2 1 . . . Special Weapon 2 | . 1 . . . 1 . . . . . . Impact Weapon 2 | . . . . . . . 1 1 . . . Slashing Weapon . | . . . . . . . . . . . . Piercing Weapon . | . . . . . . . . . . . . Special Melee Weapon . | . . . . . . . . . . . . Unidentified Prototypes . | . . . . . . . . . . . . Parts Lost 11 | . . 7 . . . 1 2 . . 1 . Power 1 | . . 1 . . . . . . . . . Propulsion 4 | . . 2 . . . . 1 . . 1 . Utility 1 | . . 1 . . . . . . . . . Weapon 5 | . . 3 . . . 1 1 . . . . Highest Loss Streak 3 | . . 3 . . . 1 1 . . 1 . Average Slot Usage (%) 95 | . 100 89 100 100 88 92 98 100 100 82 70 Engine 9 | . 14 13 14 14 9 9 7 7 7 6 5 Treads 14 | . 28 11 . . 5 2 25 . . . . Leg 7 | . . 7 28 28 20 23 . . . . . Hover 4 | . . . . . . . 2 30 30 23 17 Device 10 | . 12 9 14 14 9 10 9 7 7 10 11 Storage 14 | . 14 14 14 14 9 13 15 15 15 13 11 Processor 8 | . . . . . 18 18 15 15 15 13 11 Hackware 2 | . . . . . . . 5 7 7 6 5 Energy Gun 6 | . 14 8 14 14 7 4 2 . . . . Ballistic Gun 9 | . 13 17 14 14 9 8 6 7 7 . . Ballistic Cannon 1 | . . . . . . . 2 . . . . Naked Turns . | . . . . . . . . . . . . Heaviest Build 55 | 12 28 28 26 26 26 46 55 42 42 49 49 Greatest Support 80 | 40 40 40 30 30 43 60 80 44 44 50 50 Greatest Overweight (x) 1 | . . 1 . . . 1 . . . . . Average Overweight (x) . | . . . . . . . . . . . . Largest Inventory Capacity 16 | 6 10 10 10 10 10 16 16 14 14 16 16 Average Capacity 12 | 5 7 8 9 10 10 13 15 14 14 14 16 Most Carried 16 | 4 7 8 10 10 9 12 16 14 14 16 16 Average Carried 10 | 2 5 5 9 9 8 9 14 13 13 14 16 Final Capacity 16 | 6 10 8 10 10 10 16 14 14 14 16 16 Final Carried 16 | 3 6 8 10 10 9 10 14 14 14 16 16 Class Distribution -------------------- 30% | Scavenger-Skirmisher 27% | Scavenger-Mutant 25% | Mutant 10% | Scavenger-Scout 5% | Scavenger-Ninja Dominant Class ---------------- Mutant | -10/Materials Mutant | -10/Mines Scavenger-Mutant | -10/Exiles Scavenger-Skirmisher | -9/Mines Scavenger-Skirmisher | -8/Materials Scavenger-Mutant | -8/Garrison Scavenger-Skirmisher | -7/Factory Scavenger-Scout | -7/Lower Caves Scavenger-Scout | -7/Lower Caves Scavenger-Ninja | -6/Factory Scavenger-Ninja | -5/Factory Resources | -11 -10 -10 -10 -9 -8 -8 -7 -7 -7 -6 -5 ----------- Run | Scr Mat Min Exi Min Mat Gar Fac Low Low Fac Fac Matter Collected 1608 | 279 61 291 30 . . 230 574 115 28 . . Remotely . | . . . . . . . . . . . . Salvage Created 1378 | 120 147 148 . . . 247 687 29 . . . Parts 101 | 12 14 5 . . . 24 46 . . . . Haulers Intercepted 2 | . . . . . . . 2 . . . . Recyclers Shooed . | . . . . . . . . . . . . Parts Field Recycled . | . . . . . . . . . . . . Retrieved Matter . | . . . . . . . . . . . . Parts Self-Destructed . | . . . . . . . . . . . . Prevented . | . . . . . . . . . . . . Kills | -11 -10 -10 -10 -9 -8 -8 -7 -7 -7 -6 -5 ------- Run | Scr Mat Min Exi Min Mat Gar Fac Low Low Fac Fac Combat Hostiles Destroyed 36 | . 5 10 . . . 9 11 1 . . . Guns 24 | . 4 10 . . . 5 4 1 . . . Cannons 4 | . . . . . . . 4 . . . . AOE 8 | . 1 . . . . 4 3 . . . . Classes Destroyed 13 | 2 3 2 . . . 1 5 . . . . Worker 2 | . . . . . . . 2 . . . . Builder 3 | . . . . . . . 3 . . . . Tunneler 2 | 2 . . . . . . . . . . . Hauler 2 | . . . . . . . 2 . . . . Recycler 2 | 1 . . . . . . 1 . . . . Watcher 2 | . 1 . . . . . 1 . . . . Swarmer 15 | . 3 5 . . . 4 3 . . . . Grunt 4 | . 2 . . . . 2 . . . . . Sentry 8 | . . . . . . 3 5 . . . . Demolisher 1 | . . 1 . . . . . . . . . Hunter 1 | . . . . . . . 1 . . . . Programmer 3 | . . . . . . . 2 1 . . . Assembled 4 | . . 4 . . . . . . . . . Best Kill Streak 7 | 2 3 5 . . . 4 7 1 . . . Combat Bots Only 5 | . 3 5 . . . 4 4 1 . . . Max Kills in Single Turn 4 | 1 2 1 . . . 4 4 1 . . . Gunslinging . | . . . . . . . . . . . . Exploded 4 | . 1 . . . . 4 3 . . . . Melee . | . . . . . . . . . . . . Uniques/NPCs Destroyed . | . . . . . . . . . . . . Combat | -11 -10 -10 -10 -9 -8 -8 -7 -7 -7 -6 -5 -------- Run | Scr Mat Min Exi Min Mat Gar Fac Low Low Fac Fac Damage Taken 2848 | . 83 951 . . . 574 1152 62 . 26 . Core 362 | . . 195 . . . 75 60 32 . . . Absorbed by Shields . | . . . . . . . . . . . . Core Remaining (%) 78 | 100 . . . 22 . 86 . . 86 100 . Volleys Fired 113 | 3 11 34 . . 1 22 40 2 . . . Largest 2 | 2 2 2 . . 1 2 2 2 . . . Hottest 130 | 60 100 60 . . 100 88 130 58 . . . Shots Fired 206 | 6 21 55 . . 1 42 77 4 . . . Gun 159 | 6 20 55 . . . 41 35 2 . . . Cannon 40 | . . . . . . . 40 . . . . Launcher 5 | . . . . . . 1 2 2 . . . Special 2 | . 1 . . . 1 . . . . . . Kinetic 139 | 3 10 49 . . . 20 55 2 . . . Thermal 49 | . 1 6 . . 1 21 20 . . . . Explosive 5 | . . . . . . 1 2 2 . . . Electromagnetic 13 | 3 10 . . . . . . . . . . Robot Hit Streak 21 | 1 11 12 . . . 15 21 3 . . . Robot Miss Streak 3 | 1 3 3 . . . 2 3 2 . . . Penetration Max . | . . . . . . . . . . . . Secondary Targets 4 | . 1 1 . . . 2 . . . . . Max Gunslinging Chain 1 | . 1 1 . . . 1 . . . . . Shots Hit Robots 152 | 2 13 42 . . . 32 60 3 . . . Core Hits 90 | 3 8 21 . . . 15 42 1 . . . Critical Hits 1 | . . . . . . . 1 . . . . Critical Kills . | . . . . . . . . . . . . Critical Parts Destroyed 1 | . . . . . . . 1 . . . . Melee Attacks 9 | . . . . . . . . 3 . 6 . Impact 9 | . . . . . . . . 3 . 6 . Slashing . | . . . . . . . . . . . . Piercing . | . . . . . . . . . . . . Sneak Attacks . | . . . . . . . . . . . . Combat Hostiles . | . . . . . . . . . . . . Follow-up Attacks . | . . . . . . . . . . . . Damage Inflicted 3366 | 56 297 471 . . . 582 1876 84 . . . Guns 1624 | 56 200 471 . . . 387 490 20 . . . Cannons 666 | . . . . . . . 666 . . . . Explosions 1045 | . 97 . . . . 195 689 64 . . . Melee . | . . . . . . . . . . . . Ramming 31 | . . . . . . . 31 . . . . Kinetic 1365 | 14 70 425 . . . 137 699 20 . . . Thermal 1279 | . 97 46 . . . 250 886 . . . . Explosive 519 | . . . . . . 195 260 64 . . . Electromagnetic 172 | 42 130 . . . . . . . . . . Impact . | . . . . . . . . . . . . Slashing . | . . . . . . . . . . . . Piercing . | . . . . . . . . . . . . Highest Corruption 5 | . . . . . . . 4 5 5 . . Average Corruption 3 | . . . . . . . 3 4 5 . . Corruption Purged . | . . . . . . . . . . . . Effects 6 | . . . . . . . 4 2 . . . Message Errors 2 | . . . . . . . 1 1 . . . Matter Fused 2 | . . . . . . . 2 . . . . Heat Flow Errors 1 | . . . . . . . . 1 . . . Targeting Errors 1 | . . . . . . . 1 . . . . Overload Shots . | . . . . . . . . . . . . Overflow Damage 175 | . . . . . . . 175 . . . . Projectiles . | . . . . . . . . . . . . Explosions 175 | . . . . . . . 175 . . . . Melee . | . . . . . . . . . . . . Knockbacks 1 | . . . . . . . 1 . . . . Impact 1 | . . . . . . . 1 . . . . Kinetic . | . . . . . . . . . . . . Secondary . | . . . . . . . . . . . . Self-Inflicted Damage 201 | . 20 . . . . 24 157 . . . . Shots 5 | . 1 . . . . 1 3 . . . . Rammed 3 | . . . . . . . 3 . . . . Targets Rammed 4 | . . . . . . . 4 . . . . Kicked . | . . . . . . . . . . . . Crushed 1 | . . . . . . . 1 . . . . Highest Temperature 144 | . 24 44 . . . 35 21 144 . . . Average Temperature 17 | . 11 5 . . . 11 12 89 . . . Received Heat Transfer 449 | . 18 20 . . . 243 168 . . . . Siege Activations . | . . . . . . . . . . . . Robots Corrupted . | . . . . . . . . . . . . Combat Hostiles . | . . . . . . . . . . . . Parts Fried . | . . . . . . . . . . . . Impact Corruptions . | . . . . . . . . . . . . Robots Melted . | . . . . . . . . . . . . Combat Hostiles . | . . . . . . . . . . . . Parts Melted . | . . . . . . . . . . . . Heat Transferred 1623 | . 50 100 . . . 557 916 . . . . Parts Sabotaged . | . . . . . . . . . . . . Parts Stolen . | . . . . . . . . . . . . Parts Stripped . | . . . . . . . . . . . . Power Chain Reactions 2 | . 2 . . . . . . . . . . Missiles Intercepted . | . . . . . . . . . . . . Alert | -11 -10 -10 -10 -9 -8 -8 -7 -7 -7 -6 -5 ------- Run | Scr Mat Min Exi Min Mat Gar Fac Low Low Fac Fac Peak Influence 294 | 15 222 125 . . 12 227 294 . . 98 47 Initial 119 | . 9 8 . . . 7 119 . . 38 47 Average 84 | 6 81 79 . . 6 111 105 . . 60 47 Maximum Alert Level 1 | . 1 . . . . 1 1 . . . . Low Security (%) 94 | 100 91 100 . 100 100 61 97 . . 100 100 Level 1 5 | . 8 . . . . 38 2 . . . . Level 2 . | . . . . . . . . . . . . Level 3 . | . . . . . . . . . . . . Level 4 . | . . . . . . . . . . . . Level 5 . | . . . . . . . . . . . . High Security . | . . . . . . . . . . . . Max Security . | . . . . . . . . . . . . Squads Dispatched 4 | . . . . . . . 3 . . 1 . Investigation . | . . . . . . . . . . . . Extermination 2 | . . . . . . . 2 . . . . Reinforcement 1 | . . . . . . . 1 . . . . Assault 1 | . . . . . . . . . . 1 . Garrison . | . . . . . . . . . . . . Intercept . | . . . . . . . . . . . . Construction Impeded 1 | . . . . . . . 1 . . . . Haulers Reinforced . | . . . . . . . . . . . . Stealth | -11 -10 -10 -10 -9 -8 -8 -7 -7 -7 -6 -5 --------- Run | Scr Mat Min Exi Min Mat Gar Fac Low Low Fac Fac Distress Signals 1 | . . . . . 1 . . . . . . Communications Jammed . | . . . . . . . . . . . . Distress Signals . | . . . . . . . . . . . . Times Spotted 59 | . 6 28 . . . 10 13 1 . 1 . Peak Tracking Total 19 | . 3 19 . . . 6 4 1 . 1 . Tactical Retreats 1 | . . . . . . 1 . . . . . Traps | -11 -10 -10 -10 -9 -8 -8 -7 -7 -7 -6 -5 ------- Run | Scr Mat Min Exi Min Mat Gar Fac Low Low Fac Fac Traps Triggered 1 | . . . . . . . . . . 1 . Indirectly . | . . . . . . . . . . . . Trap Hack Attempts . | . . . . . . . . . . . . Triggered . | . . . . . . . . . . . . Disarmed . | . . . . . . . . . . . . Reprogrammed . | . . . . . . . . . . . . Reused 1 | . . 1 . . . . . . . . . Traps Extracted . | . . . . . . . . . . . . Installed 3 | . . 3 . . . . . . . . . Triggered 2 | . . 1 . . . . . 1 . . . Machines | -11 -10 -10 -10 -9 -8 -8 -7 -7 -7 -6 -5 ---------- Run | Scr Mat Min Exi Min Mat Gar Fac Low Low Fac Fac Machines Disabled 4 | . 1 . . . . . 3 . . . . Max in Single Turn 3 | . 1 . . . . . 3 . . . . Garrison Access 3 | . . . . . . . 2 . . 1 . Machines Sabotaged . | . . . . . . . . . . . . Garrisons Compromised . | . . . . . . . . . . . . Overloaded Fab Kills . | . . . . . . . . . . . . Fab Network Shutdowns . | . . . . . . . . . . . . Hacking | -11 -10 -10 -10 -9 -8 -8 -7 -7 -7 -6 -5 --------- Run | Scr Mat Min Exi Min Mat Gar Fac Low Low Fac Fac Machines Accessed 16 | . 4 . 1 . 2 . 5 1 . 3 . Terminals 9 | . 3 . . . 1 . 2 . . 3 . Fabricators 1 | . . . . . . . 1 . . . . Repair Stations . | . . . . . . . . . . . . Recycling Units 1 | . 1 . . . . . . . . . . Scanalyzers . | . . . . . . . . . . . . Garrison Access 3 | . . . . . 1 . 2 . . . . Total Hacks 39 | . 14 . 1 . 3 . 11 1 . 9 . Successful 24 | . 10 . 1 . 3 . 4 1 . 5 . Failed 14 | . 3 . . . . . 7 . . 4 . Catastrophic . | . . . . . . . . . . . . Database Lockouts 1 | . 1 . . . . . . . . . . Manual 29 | . 13 . 1 . 2 . 9 . . 4 . Terminals 32 | . 13 . . . 2 . 8 . . 9 . Fabricators 1 | . . . . . . . 1 . . . . Repair Stations . | . . . . . . . . . . . . Recycling Units 1 | . 1 . . . . . . . . . . Scanalyzers . | . . . . . . . . . . . . Garrison Access 3 | . . . . . 1 . 2 . . . . Terminal Hacks 12 | . 5 . 1 . 1 . 2 1 . 2 . Robot Analysis 3 | . 3 . . . . . . . . . . Open Door 1 | . . . . . . . . 1 . . . Terminal Index 3 | . 1 . . . 1 . 1 . . . . Unreport Threat 1 | . . . . . . . 1 . . . . Locate Traps 2 | . 1 . . . . . . . . 1 . Registered Components 1 | . . . . . . . . . . 1 . EX-Prototype ID Bank 1 | . . . 1 . . . . . . . . Fabricator Hacks . | . . . . . . . . . . . . Repair Station Hacks . | . . . . . . . . . . . . Recycling Unit Hacks . | . . . . . . . . . . . . Scanalyzer . | . . . . . . . . . . . . Garrison Access Hacks 3 | . . . . . 1 . 2 . . . . Unlock Access 1 | . . . . . 1 . . . . . . Seal Access 2 | . . . . . . . 2 . . . . Unauthorized Hacks 9 | . 5 . . . 1 . . . . 3 . Terminals 8 | . 4 . . . 1 . . . . 3 . Track 2 | . 2 . . . . . . . . . . Assimilate 1 | . 1 . . . . . . . . . . Botnet 4 | . 1 . . . 1 . . . . 2 . Operators 1 | . . . . . . . . . . 1 . Fabricators . | . . . . . . . . . . . . Repair Stations . | . . . . . . . . . . . . Recycling Units 1 | . 1 . . . . . . . . . . Recyclers 1 | . 1 . . . . . . . . . . Scanalyzers . | . . . . . . . . . . . . Garrison Access . | . . . . . . . . . . . . Data Cores Recovered . | . . . . . . . . . . . . Used . | . . . . . . . . . . . . Hacking Detections 11 | . 4 . . . 1 . 3 . . 3 . Full Trace Events . | . . . . . . . . . . . . Feedback Events . | . . . . . . . . . . . . Feedback Blocked . | . . . . . . . . . . . . Robot Schematics Acquired . | . . . . . . . . . . . . Robots Built . | . . . . . . . . . . . . Matter . | . . . . . . . . . . . . Time . | . . . . . . . . . . . . Total Robot Build Rating . | . . . . . . . . . . . . Part Schematics Acquired . | . . . . . . . . . . . . Parts Built . | . . . . . . . . . . . . Matter . | . . . . . . . . . . . . Time . | . . . . . . . . . . . . Total Part Build Rating . | . . . . . . . . . . . . Parts Repaired . | . . . . . . . . . . . . Time . | . . . . . . . . . . . . Parts Recycled . | . . . . . . . . . . . . Recycled Matter . | . . . . . . . . . . . . Retrieved Matter . | . . . . . . . . . . . . Retrieved Components . | . . . . . . . . . . . . Parts Scanalyzed . | . . . . . . . . . . . . Part Schematics Acquired . | . . . . . . . . . . . . Parts Damaged . | . . . . . . . . . . . . Bothacking | -11 -10 -10 -10 -9 -8 -8 -7 -7 -7 -6 -5 ------------ Run | Scr Mat Min Exi Min Mat Gar Fac Low Low Fac Fac Used RIF Installer 1 | . . . . . . 1 . . . . . Robots Hacked . | . . . . . . . . . . . . Non-combat . | . . . . . . . . . . . . Combat . | . . . . . . . . . . . . Robot Hacks Applied . | . . . . . . . . . . . . Relay Couplers Released 1 | . . . . . . . . . . 1 . Machine Destruction 1 | . . . . . . . . . . 1 . Robots Rewired . | . . . . . . . . . . . . Allies Hacked . | . . . . . . . . . . . . Hacks Repelled . | . . . . . . . . . . . . Allies | -11 -10 -10 -10 -9 -8 -8 -7 -7 -7 -6 -5 -------- Run | Scr Mat Min Exi Min Mat Gar Fac Low Low Fac Fac Total Allies 4 | . 1 3 . . . . . . . . . Largest Group 3 | . 1 3 3 3 3 1 . . . . . Highest-Rated Group 40 | . 10 40 40 40 40 16 . . . . . Highest-Rated Ally 16 | . 10 16 16 16 16 16 . . . . . Total Orders . | . . . . . . . . . . . . Ally Attacks 8 | . . 3 . . . 5 . . . . . Total Damage 95 | . . 22 . . . 73 . . . . . Kills 2 | . . 1 . . . 1 . . . . . Allies Corrupted . | . . . . . . . . . . . . Allies Melted . | . . . . . . . . . . . . Intel | -11 -10 -10 -10 -9 -8 -8 -7 -7 -7 -6 -5 ------- Run | Scr Mat Min Exi Min Mat Gar Fac Low Low Fac Fac Robot Analysis Total 3 | . 3 . . . . . . . . . . Derelict Logs Recovered 1 | . . . . . . . . 1 . . . Drone Launches . | . . . . . . . . . . . . Drone Recoveries . | . . . . . . . . . . . . Exploration | -11 -10 -10 -10 -9 -8 -8 -7 -7 -7 -6 -5 ------------- Run | Scr Mat Min Exi Min Mat Gar Fac Low Low Fac Fac Turns Passed 3483 | 88 410 530 342 99 73 255 1243 105 37 295 6 Spaces Moved 2633 | 59 223 278 277 79 51 131 773 178 73 501 10 Core 31 | 31 . . . . . . . . . . . Treads 1023 | 28 223 176 . . . 16 580 . . . . Legs 624 | . . 102 277 79 51 115 . . . . . Wheels . | . . . . . . . . . . . . Hover 955 | . . . . . . . 193 178 73 501 10 Flight . | . . . . . . . . . . . . Fastest Speed 48 | 50 160 120 120 120 120 120 48 48 48 48 52 Average Speed 108 | 102 160 145 120 120 120 126 132 48 48 49 52 Slowest Speed 160 | 160 160 160 120 120 120 160 160 48 48 52 52 Overloaded Moves . | . . . . . . . . . . . . Propulsion Burnouts . | . . . . . . . . . . . . Robots Hopped . | . . . . . . . . . . . . Cave-ins Triggered . | . . . . . . . . . . . . Exploration Rate (%) 28 | 3 43 49 65 20 9 42 29 54 14 14 1 Regions Visited 11 Branch Regions 5 Pre-discovered Areas . | . . . . . . . . . . . . Known Exits Taken 2 | . . . . . 1 . . . . 1 . Unknown Exits Taken 8 | 1 1 1 1 1 . . 1 1 1 . . Scrap Searched 5 | . . 1 . . . . . 3 1 . . Spaces Dug 26 | . 1 . . . 1 9 7 2 . 6 . Terrain Destroyed 117 | . 6 . . . 1 9 72 23 . 6 . Melee 8 | . . . . . . . . 2 . 6 . Projectile 2 | . 1 . . . 1 . . . . . . AOE 107 | . 5 . . . . 9 72 21 . . . Terrain Rammed . | . . . . . . . . . . . . Walls Destroyed . | . . . . . . . . . . . . Machines Disabled . | . . . . . . . . . . . . Actions | -11 -10 -10 -10 -9 -8 -8 -7 -7 -7 -6 -5 --------- Run | Scr Mat Min Exi Min Mat Gar Fac Low Low Fac Fac Total 3011 | 83 251 348 287 82 59 182 912 186 74 537 10 Wait 29 | . 1 5 1 . 1 . 5 . . 16 . Move 2621 | 58 222 277 276 78 50 129 772 177 72 500 10 Hop . | . . . . . . . . . . . . Pick Up 58 | 11 4 7 4 1 1 5 19 1 1 4 . Fast Attach 27 | 3 . 7 . . 2 4 9 . . 2 . Attach 24 | 4 . 2 1 . 2 7 6 . . 2 . Detach 9 | . . 1 . . . 3 3 . . 2 . Swap 60 | . 9 7 2 2 1 6 30 2 . 1 . Drop 54 | 4 4 5 3 1 1 6 24 1 1 4 . Fire 113 | 3 11 34 . . 1 22 40 2 . . . Melee 9 | . . . . . . . . 3 . 6 . Ram . | . . . . . . . . . . . . Kick . | . . . . . . . . . . . . Crush 4 | . . . . . . . 4 . . . . Escape Stasis . | . . . . . . . . . . . . Rewire . | . . . . . . . . . . . . Trap 3 | . . 3 . . . . . . . . . Miscellaneous . | . . . . . . . . . . . . Route ------- -11/Scrapyard -10/Materials -10/Mines (discovered 3 exits: [*Mat x2] / *Exi) -10/Exiles (discovered 2 exits: [*Min x2]) -9/Mines -8/Materials -8/Garrison -7/Factory (discovered 2 exits: *Fac / *Low) -7/Lower Caves -7/Lower Caves -6/Factory (discovered 2 exits: *Fac x2) -5/Factory History --------- Turn | Location | Event 6 | -11/Scrapyard | Discovered new exit (range 14) 89 | -11/Scrapyard | Entered Materials 301 | -10/Materials | Build established: Mutant 401 | -10/Materials | Discovered new exit (range 6) 469 | -10/Materials | Central database locked down 499 | -10/Materials | Entered Mines 499 | -10/Mines | Accompanied by 1 ally 500 | -10/Mines | Assembled infested the area 500 | -10/Mines | Met a Derelict bent on vengeance 511 | -10/Mines | Discovered new exit (range 16) 533 | -10/Mines | Core integrity fell below 50% 578 | -10/Mines | Lost 3 parts (1p1n1w) 695 | -10/Mines | Lost 3 parts (1n1u1w) 735 | -10/Mines | Found a hidden stash of uninstalled traps 816 | -10/Mines | Discovered new exit (range 16) 819 | -10/Mines | Assisted by bots powering up and referring to "LRC-V3" 1018 | -10/Mines | Deemed a non-threat by the Exiles lab entrance 1018 | -10/Mines | Discovered new exit (range 5) 1029 | -10/Mines | Entered Exiles 1029 | -10/Exiles | Accompanied by 3 allies 1045 | -10/Exiles | Discovered new exit (range 15) 1062 | -10/Exiles | Met 8R-AWN 1080 | -10/Exiles | Met EX-HEX 1156 | -10/Exiles | Met EX-BIN 1169 | -10/Exiles | Aligned with FarCom system 1170 | -10/Exiles | Given EX-Vault access code 1187 | -10/Exiles | Build established: Scavenger-Mutant 1199 | -10/Exiles | Opened EX-Vault 1206 | -10/Exiles | Found Cloak of Protection 1232 | -10/Exiles | Warned to stay clear of 0b10 Research branches 1267 | -10/Exiles | Met EX-DEC 1358 | -10/Exiles | Discovered new exit (range 10) 1371 | -10/Exiles | Left Exiles lab with Cloak of Protection 1371 | -10/Exiles | Entered Mines 1371 | -9/Mines | Accompanied by 3 allies 1378 | -9/Mines | Received a Rocket Launcher from a helpful Derelict 1454 | -9/Mines | Discovered new exit (range 12) 1470 | -9/Mines | Entered Materials 1470 | -8/Materials | Accompanied by 3 allies 1470 | -8/Materials | Evolved 4 slots: Propulsion x1, Utility x3 1541 | -8/Materials | Identified exit to Garrison 1543 | -8/Materials | Entered Garrison 1543 | -8/Garrison | Accompanied by 1 ally 1549 | -8/Garrison | Installed Relay Interface Framework 1601 | -8/Garrison | Triggered checkpoint 1604 | -8/Garrison | Triggered checkpoint 1786 | -8/Garrison | Discovered new exit (range 8) 1798 | -8/Garrison | Entered Factory 1798 | -7/Factory | Evolved 2 slots: Propulsion x1, Utility x1 2077 | -7/Factory | Build established: Scavenger-Skirmisher 2210 | -7/Factory | Discovered new exit (range 14) 2747 | -7/Factory | Discovered new exit (range 15) 3041 | -7/Factory | Entered Lower Caves 3082 | -7/Lower Caves | Learned 8 Factory zone layouts 3141 | -7/Lower Caves | Discovered new exit (range 10) 3146 | -7/Lower Caves | Entered another Lower Caves area 3177 | -7/Lower Caves | Discovered new exit (range 12) 3183 | -7/Lower Caves | Entered Factory 3183 | -6/Factory | Evolved 2 slots: Power x1, Utility x1 3184 | -6/Factory | Identified exit to Factory 3216 | -6/Factory | Build established: Scavenger-Scout 3275 | -6/Factory | Discovered exit to Factory (range 17) 3478 | -6/Factory | Entered another Factory area 3478 | -5/Factory | Evolved 2 slots: Utility x2 3484 | -5/Factory | Self-destructed Last Messages --------------- PVABHGW9TZ: Nuclear Pulse Thruster CF70GYTMO1: Lrg. Storage Unit SOWOLIX5VI: Cloaking Device DIP61I4ODT: Gauss Rifle 3826I03Y6W: Imp. Medium Armor Plating S6BN75HO94: Thermal Shield OUME0FNP4M: Imp. Targeting Computer R40D4ICW9V: Maneuvering Thrusters D6PFJUTOWT: Hpw. Shotgun QEUEZTUGD2: Mining Claw G2DSNOKYA9: Powered Hammer KULI3L76DE: Maneuvering Thrusters 6QJI1EM996: Gauss Rifle 00MP9R2AWD: Reflective Plating Downloaded coordinate data. 03434_ Connecting with Fabricator... PARAMETERS=UTILITY_2 LOCATION=FACTORY GOAL=ESCAPE 03478_ Receiving FarCom transmissions... Map ----- +----------------------------------------------------+ | ???????????????????????????????????????????????? | | ???????????????????????????????????????????????? | | ???????????????????????????????????????????????? | | ???????????????????????????????????????????????? | | ???????????????????????????????????????????????? | | ???????????????????????????????????????????????? | | ???????????????????????????????????????????????? | | ???????????????????????????????????????????????? | | ???????????????????????????????????????????????? | | ???????????????????????????????????????????????? | | ???????????????????????????????????????????????? | | ???????????????????????????????????????????????? | | ???????????????????????????????????????????????? | | ??????????????#???????????????#????????????????? | | ???????????????????????#??????#?#???????#??????? | | ?????????????????????#????#????????????????????? | | ??????????????????"?????#???????#??????????????? | | ?????????????????????###########???????????????? | | ?????????????????????# =! [ #???????????????? | | ?????????????????????# =/ #???????#???????? | | ?????????????????????# ! ##??????????????? | | ?????????????????????# ##??????????????? | | ?????????????????????# """ """ #???????????????? | | ?????????????? ??????# """ R" #???#???????????? | | ????????? ???????????# """ """ #???????????????? | | ???????????????? ????# @m #???????????????? | | ????????###########+######/#####???????????????? | | ????????# #????????????????? | | ????????# #??#?????????????? | | ????????# #????????????????? | | ????????# #?????#??????????? | | ????????# #?????##?????????? | | ????????# ############+####????????????????? | | ????????# ????##?????? ?????#??##?????#??? | | ????????#????????????? | ! #???????????????? | | ???????????? ????????# ! #?#?????#???????? | | ?????????????????????# #?????#?????????? | | ?????????????????????# """""" #???????????????? | | ?????????????????????# """""" #???????????????? | | ??????????? ???#?????# """""" #???????????????? | | ?????????????????????# """""" #???????????????? | | ?????????????????????###########???????????????? | | ???????????????????????????????????????????????? | | ???????????????????????????????#???????????????? | | ???????????????????????????????????????#???????? | | ??????????????? ? ??"???? ?????????????????????? | | ???????????????????????"???????????????????????? | | ???????????????????????????????????????????????? | | ???????????????????????????????????????????????? | | ???????????????????????????????????????????????? | +----------------------------------------------------+ Best States ------------- Heat Dissipation 61 Energy Generation 16 Energy Capacity 290 Matter Stores 300 Matter Capacity 300 Sight Range 22 Terrain Scan Range 20 Terrain Scan Density 85 Jamming Range 8 Core Shielding 20 Weapon Shielding 33 Evasion (%) 55 Recoil Reduction 4 Offensive Hacking 10 Item Schematics ----------------- None Robot Schematics ------------------ None Fabricated ------------ Nothing Alien Tech Used ----------------- None Achievements -------------- None Challenges ------------ None Game ------ Seed SupersonicCombatInterpreter Manual? 0 Play Time 00:48:19 Cumulative 493.5 hours Start 2022.01.22 @ 19:12:38 End 2022.01.22 @ 21:36:28 Sessions 3 Manual Loads 0 Difficulty Rogue Special Mode None Game No. 236 Rogue 109 Adventurer 125 Explorer 2 Win Type - Total 44 Types 37/3/2/0/1/0/0/0/1 Lore% 65 Gallery% 85 Achievement% 66 Wizard Run 0 Options --------- ASCII 0 Keyboard 1 Movement Numpad Keybinds 0 Fullscreen 1 Font 36/TerminusFine Map View 76x50 Tactical HUD 1 Map Filters NONE Filters NONE Steam 1 RUN: cfe579ec-4d2e-41dd-9ef0-912c5f41562d